bitfinex-derivatives/quotes_SOLF0:USTF0_20251208
["timestamp","ask_amount","ask_price","bid_price","bid_amount"]
[1765206672715,62.28,136.49,136.43,3.23]
[1765206673112,62.28,136.49,136.46,3.23]
[1765206673314,4.28419336,136.53,136.46,3.23]
[1765206673821,0.04739537,136.51,136.48,0.05072722]
[1765206674319,3.19739537,136.51,136.48,0.05072722]
[1765206674513,0.04739537,136.51,136.48,0.05072722]
[1765206674708,0.04739537,136.51,136.48,3.28072722]
[1765206675023,0.04739537,136.51,136.48,9.87492722]
[1765206675317,0.04739537,136.51,136.48,0.05072722]
[1765206675512,3.19739537,136.51,136.48,0.05072722]
[1765206676412,3.15,136.5,136.4,105.868]
[1765206676613,6.5945,136.48,136.4,9.8281]
[1765206676813,68.8745,136.48,136.4,9.8281]
[1765206677012,68.8745,136.48,136.4,3.23]
[1765206677013,62.28,136.48,136.4,3.23]
[1765206677208,62.28,136.48,136.41,6.5976]
[1765206677414,0.05225241,136.46,136.43,3.28324137]
[1765206677622,0.05225241,136.46,136.43,9.87984137]
[1765206677816,0.05225241,136.46,136.43,3.28324137]
[1765206678016,0.05225241,136.46,136.43,0.05324137]
[1765206678517,0.05225241,136.46,136.43,3.05324137]
[1765206679218,0.05225241,136.46,136.43,105.66874137]
[1765206679425,0.05225241,136.46,136.44,3.0]
[1765206679824,0.05225241,136.46,136.44,6.596]
[1765206680035,0.05225241,136.46,136.45,3.0]
[1765206680522,69.74419336,136.53,136.46,6.595]
[1765206680726,102.5257,136.56,136.47,105.5885]
[1765206680727,4.28419336,136.56,136.47,105.5885]
[1765206680922,7.44419336,136.56,136.47,105.5885]
[1765206681520,0.05638097,136.53,136.49,6.5938]
[1765206681820,0.05638097,136.53,136.5,0.04725951]
[1765206682019,3.21638097,136.53,136.5,0.04725951]
[1765206682725,0.05638097,136.53,136.5,0.04725951]
[1765206683113,3.21638097,136.53,136.5,0.04725951]
[1765206683722,0.05638097,136.53,136.5,0.04725951]
[1765206684021,3.21638097,136.53,136.5,0.04725951]
[1765206684218,0.05638097,136.53,136.5,3.04725951]
[1765206684618,0.05638097,136.53,136.51,3.0]
[1765206684819,62.3,136.57,136.53,3.0]
[1765206685022,66.58419336,136.62,136.54,105.5342]
[1765206685213,62.3,136.62,136.55,105.5236]
[1765206685412,3.16,136.64,136.58,6.5892]
[1765206685637,65.46,136.64,136.58,6.5892]
[1765206685832,0.05205917,136.62,136.6,0.04734526]
[1765206686326,3.21205917,136.62,136.6,0.04734526]
[1765206686727,0.05205917,136.62,136.6,0.04734526]
[1765206687821,3.21205917,136.62,136.6,0.04734526]
[1765206689225,3.16,136.61,136.54,6.5913]
[1765206689430,3.16,136.61,136.52,65.3]
[1765206689730,3.16,136.59,136.49,7.28419336]
[1765206689930,3.16,136.59,136.5,3.0]
[1765206690125,0.0490407,136.56,136.53,0.05633664]
[1765206690322,0.0490407,136.56,136.53,3.05633664]
[1765206691422,3.2090407,136.56,136.53,0.05633664]
[1765206692023,6.5912,136.55,136.53,0.05633664]
[1765206692226,3.16,136.54,136.53,0.05633664]
[1765206693220,6.5912,136.55,136.53,0.05633664]
[1765206693833,9.7512,136.55,136.53,0.05633664]
[1765206694337,3.16,136.54,136.53,0.05633664]
[1765206694732,3.2090407,136.56,136.53,0.05633664]
[1765206696130,7.49323406,136.56,136.53,0.05633664]
[1765206696328,3.16,136.55,136.44,105.6076]
[1765206696526,3.16,136.55,136.45,3.0]
[1765206696728,5.15503823,136.56,136.49,3.0]
[1765206696929,62.28,136.58,136.51,3.0]
[1765206697123,9.7508,136.56,136.49,6.5937]
[1765206697326,0.05553596,136.54,136.51,0.05269274]
[1765206697535,3.21553596,136.54,136.51,0.05269274]
[1765206697737,0.05553596,136.54,136.51,0.05269274]
[1765206698236,3.21553596,136.54,136.51,0.05269274]
[1765206698427,0.05553596,136.54,136.51,3.05269274]
[1765206699535,0.05553596,136.54,136.52,6.5924]
[1765206700237,0.05553596,136.54,136.52,9.5924]
[1765206702337,0.05553596,136.54,136.51,9.64559274]
[1765206703041,3.21553596,136.54,136.51,0.05269274]
[1765206704046,3.16,136.52,136.51,0.05269274]
[1765206704340,65.44,136.52,136.51,0.05269274]
[1765206705430,65.44,136.52,136.44,3.0]
[1765206706432,0.05271773,136.49,136.45,9.5957]
[1765206706733,3.21271773,136.49,136.45,3.0]
[1765206707144,0.05271773,136.49,136.45,3.0]
[1765206707744,0.05271773,136.49,136.46,3.0]
[1765206708159,0.05271773,136.49,136.47,6.5947]
[1765206708439,0.05271773,136.49,136.45,3.21]
[1765206709231,0.05271773,136.49,136.46,6.5952]
[1765206710044,3.29271773,136.49,136.44,6.596]
[1765206710244,0.05271773,136.49,136.45,3.21]
[1765206711340,0.05271773,136.49,136.46,9.8053]
[1765206711645,0.05271773,136.49,136.47,3.21]
[1765206711946,0.05271773,136.49,136.47,6.5948]
[1765206712141,3.29271773,136.49,136.42,105.833]
[1765206712349,3.24,136.46,136.41,6.5975]
[1765206712536,3.29208475,136.45,136.38,105.8637]
[1765206713037,0.05208475,136.45,136.44,3.21]
[1765206713236,0.05620284,136.46,136.4,3.21]
[1765206713441,3.29620284,136.46,136.36,102.6682]
[1765206713638,0.04823266,136.42,136.37,3.21]
[1765206714047,3.28823266,136.42,136.37,3.21]
[1765206714243,0.04823266,136.42,136.39,6.5986]
[1765206714449,3.28823266,136.42,136.32,3.21]
[1765206714639,3.24,136.35,136.26,3.21]
[1765206714839,52.82,136.34,136.27,3.21]
[1765206715663,0.05163163,136.32,136.27,3.21]
[1765206716151,0.05163163,136.32,136.29,3.21]
[1765206716536,0.05163163,136.32,136.29,105.9314]
[1765206716737,62.3,136.37,136.3,3.21]
[1765206717132,3.24,136.39,136.3,3.21]
[1765206717337,62.3,136.39,136.32,3.21]
[1765206717742,0.04680276,136.37,136.34,3.2623406]
[1765206718048,115.88592846,136.45,136.34,3.2623406]
[1765206718049,3.24,136.47,136.39,3.21]
[1765206719046,3.29355129,136.44,136.42,0.04716004]
[1765206719438,0.05355129,136.44,136.42,0.04716004]
[1765206719638,0.05355129,136.44,136.42,3.04716004]
[1765206720046,5.56768304,136.5,136.42,3.04716004]
[1765206720247,3.16,136.49,136.42,3.04716004]
[1765206720648,5.56717745,136.51,136.43,105.6153]
[1765206720845,62.32,136.52,136.44,10.48550219]
[1765206721044,0.05553278,136.49,136.47,0.05410998]
[1765206721450,112.38513278,136.49,136.47,0.05410998]
[1765206721645,3.16,136.48,136.4,3.0]
[1765206721948,5.56717745,136.5,136.43,10.48550219]
[1765206722143,9.7531,136.51,136.43,3.0]
[1765206722547,3.16,136.47,136.46,0.0509094]
[1765206722746,3.16,136.47,136.39,3.0]
[1765206722945,3.16,136.46,136.36,102.6676]
[1765206723250,3.16,136.46,136.39,3.0]
[1765206723442,62.32,136.47,136.41,3.0]
[1765206723641,0.04903489,136.45,136.43,0.0527367]
[1765206723848,0.04903489,136.45,136.43,3.0527367]
[1765206724252,62.32,136.52,136.44,3.0]
[1765206724447,62.32,136.52,136.47,3.0]
[1765206724847,62.32,136.52,136.48,3.0]
[1765206725049,65.48,136.52,136.44,3.0]
[1765206725238,0.05487264,136.49,136.47,0.05435352]
[1765206725438,0.05487264,136.49,136.47,3.05435352]
[1765206726153,0.05487264,136.49,136.47,0.05435352]
[1765206727851,0.05487264,136.49,136.47,3.05435352]
[1765206728054,0.05487264,136.49,136.47,0.05435352]
[1765206728244,3.21487264,136.49,136.47,0.05435352]
[1765206728441,3.21487264,136.49,136.39,105.6454]
[1765206728643,3.16,136.47,136.39,3.0]
[1765206728847,3.16,136.47,136.41,6.5975]
[1765206729158,3.16,136.47,136.37,3.0]
[1765206729159,65.48,136.46,136.37,3.0]
[1765206729361,65.48,136.46,136.38,6.5988]
[1765206729546,3.16,136.45,136.38,6.5988]
[1765206729750,0.05384834,136.43,136.41,0.04741807]
[1765206730457,3.16,136.42,136.33,168.0119]
[1765206730644,6.5986,136.4,136.33,3.0]
[1765206730853,3.16,136.39,136.29,65.32]
[1765206731360,3.16,136.35,136.28,6.604]
[1765206731656,0.05109279,136.33,136.28,6.604]
[1765206731957,3.21109279,136.33,136.26,6.605]
[1765206732257,3.21109279,136.33,136.26,9.605]
[1765206732454,0.05109279,136.33,136.27,102.7377]
[1765206732652,0.05109279,136.33,136.3,3.0]
[1765206732953,0.05109279,136.33,136.32,3.0]
[1765206733451,0.05109279,136.33,136.3,9.6028]
[1765206733652,0.05109279,136.33,136.29,3.0]
[1765206734343,0.05109279,136.33,136.29,105.723]
[1765206734543,3.21109279,136.33,136.28,3.0]
[1765206734958,3.21109279,136.33,136.25,3.0]
[1765206735255,3.21634064,136.3,136.21,105.7806]
[1765206735451,0.05410556,136.27,136.25,105.7543]
[1765206735655,62.34,136.33,136.27,105.7342]
[1765206735854,62.34,136.33,136.29,3.0]
[1765206736250,62.34,136.33,136.26,102.7445]
[1765206736458,62.34,136.33,136.25,65.34]
[1765206736657,0.04783452,136.3,136.28,0.05363448]
[1765206737055,3.20783452,136.3,136.28,0.05363448]
[1765206737453,0.04783452,136.3,136.28,3.05363448]
[1765206737657,3.16,136.38,136.3,102.7159]
[1765206737855,65.5,136.38,136.31,6.6024]
[1765206738048,65.5,136.38,136.31,3.24]
[1765206738253,3.16,136.36,136.27,3.24]
[1765206738449,9.78146168,136.41,136.34,3.24]
[1765206738653,3.16,136.41,136.34,3.24]
[1765206738856,0.04696396,136.39,136.36,0.05608558]
[1765206739058,3.20696396,136.39,136.36,0.05608558]
[1765206739261,3.16,136.38,136.29,3.24]
[1765206739465,62.36,136.37,136.31,6.6024]
[1765206740361,0.05307228,136.35,136.33,0.0458545]
[1765206740555,3.21307228,136.35,136.29,6.6035]
[1765206740767,0.05307228,136.35,136.29,105.9637]
[1765206740969,0.05307228,136.35,136.32,3.24]
[1765206741357,0.05307228,136.35,136.34,3.24]
[1765206741865,0.05307228,136.35,136.32,3.24]
[1765206742960,0.05307228,136.35,136.34,3.24]
[1765206743162,62.36,136.4,136.34,3.24]
[1765206743360,91.12,136.44,136.36,6.5998]
[1765206743560,96.59156123,136.44,136.36,6.5998]
[1765206744166,0.05237293,136.41,136.39,0.05173674]
[1765206744556,0.05237293,136.41,136.39,3.29173674]
[1765206745263,118.70476342,136.48,136.41,102.6332]
[1765206745264,8.63156123,136.48,136.41,102.6332]
[1765206745465,3.16,136.48,136.41,105.8732]
[1765206745674,74.45302291,136.5,136.43,3.24]
[1765206745973,74.45302291,136.5,136.46,3.24]
[1765206745974,62.36,136.5,136.46,3.24]
[1765206746460,0.0561198,136.49,136.47,3.29497511]
[1765206746666,0.04838515,136.49,136.47,3.29497511]
[1765206747066,0.04838515,136.49,136.47,9.88967511]
[1765206747367,0.04838515,136.49,136.48,3.24]
[1765206747763,0.04838515,136.49,136.47,0.05497511]
[1765206747959,3.20838515,136.49,136.47,0.05497511]
[1765206748164,3.16,136.48,136.4,3.24]
[1765206749272,0.05636016,136.45,136.43,0.0504701]
[1765206749459,3.21636016,136.45,136.43,0.0504701]
[1765206749764,0.05636016,136.45,136.43,0.0504701]
[1765206750362,3.21636016,136.45,136.43,0.0504701]
[1765206750667,9.81246016,136.45,136.43,0.0504701]
[1765206751264,9.81246016,136.45,136.36,9.84]
[1765206751468,9.81246016,136.45,136.35,102.6732]
[1765206751469,6.5966,136.44,136.37,3.24]
[1765206752354,5.47156123,136.47,136.39,105.8873]
[1765206752560,74.43302291,136.52,136.43,3.24]
[1765206752866,105.7228,136.51,136.42,6.5971]
[1765206753066,105.7262,136.5,136.42,6.5971]
[1765206753369,105.7262,136.5,136.4,3.24]
[1765206753370,6.5952,136.47,136.4,9.8382]
[1765206753664,0.05039929,136.45,136.42,0.05181348]
[1765206753868,3.21039929,136.45,136.42,0.05181348]
[1765206754463,3.16,136.43,136.42,0.05181348]
[1765206757466,6.5977,136.42,136.35,6.6005]
[1765206757667,65.5,136.41,136.34,3.24]
[1765206757968,3.16,136.4,136.33,3.24]
[1765206758174,3.16,136.37,136.29,3.24]
[1765206758362,3.16,136.37,136.3,105.9558]
[1765206758558,0.04661951,136.35,136.31,3.24]
[1765206758766,0.04661951,136.35,136.32,9.842]
[1765206759160,0.04661951,136.35,136.33,3.24]
[1765206759375,0.04661951,136.35,136.33,9.8415]
[1765206759576,68.9376,136.42,136.34,3.24]
[1765206759767,68.9376,136.42,136.34,105.9215]
[1765206760074,62.34,136.42,136.37,3.24]
[1765206760470,0.04752986,136.41,136.39,3.24]
[1765206760688,0.05593925,136.41,136.39,3.2877371]
[1765206760878,68.9357,136.46,136.39,3.2877371]
[1765206760879,62.34,136.46,136.39,3.2877371]
[1765206761078,3.16,136.49,136.42,3.24]
[1765206761575,68.9332,136.51,136.45,6.5956]
[1765206761770,0.05478599,136.49,136.47,0.05160564]
[1765206763873,0.05478599,136.49,136.48,3.24]
[1765206764172,105.6994,136.54,136.47,0.05160564]
[1765206764469,3.16,136.51,136.47,0.05160564]
[1765206764666,65.5,136.51,136.47,0.05160564]
[1765206764866,3.16,136.5,136.47,0.05160564]
[1765206765072,3.16,136.48,136.4,3.24]
[1765206765779,105.7499,136.47,136.39,6.5985]
[1765206765976,3.21042988,136.44,136.42,0.05058784]
[1765206766178,3.16,136.43,136.42,0.05058784]
[1765206766569,3.21042988,136.44,136.42,0.05058784]
[1765206768882,9.80702988,136.44,136.42,0.05058784]
[1765206769074,9.93702988,136.44,136.42,0.05058784]
[1765206769381,3.29,136.43,136.42,0.05058784]
[1765206769977,6.5976,136.42,136.36,9.8399]
[1765206770172,6.5976,136.42,136.36,3.24]
[1765206770477,68.9181,136.41,136.34,6.6009]
[1765206771066,0.04773668,136.39,136.36,3.35184641]
[1765206772075,0.04773668,136.39,136.36,0.05184641]
[1765206773181,3.33773668,136.39,136.36,0.05184641]
[1765206774279,3.29,136.37,136.36,0.05184641]
[1765206774483,3.29,136.37,136.29,65.64]
[1765206774782,3.29,136.37,136.31,6.6025]
[1765206775080,3.29,136.37,136.29,65.64]
[1765206775081,3.29,136.37,136.3,102.7156]
[1765206775380,0.05245692,136.35,136.32,6.6019]
[1765206775686,0.05245692,136.35,136.32,9.9019]
[1765206775880,0.05245692,136.35,136.32,3.3]
[1765206776082,0.05245692,136.35,136.33,9.9015]
[1765206776282,0.05245692,136.35,136.34,3.3]
[1765206776580,0.05245692,136.35,136.3,3.3]
[1765206776781,0.05245692,136.35,136.31,3.3]
[1765206776982,3.34245692,136.35,136.31,6.6024]
[1765206777184,3.34245692,136.35,136.29,62.34]
[1765206777679,3.34245692,136.35,136.3,9.9029]
[1765206777888,0.05245692,136.35,136.3,3.3]
[1765206778176,0.05245692,136.35,136.33,3.3]
[1765206778577,62.34,136.42,136.35,3.3]
[1765206778786,4.30228547,136.41,136.35,3.3]
[1765206779481,0.05010913,136.39,136.37,0.05048693]
[1765206780684,0.05010913,136.39,136.37,3.09048693]
[1765206780984,0.05010913,136.39,136.37,0.05048693]
[1765206781378,3.33010913,136.39,136.37,0.05048693]
[1765206781678,0.05010913,136.39,136.37,0.05048693]
[1765206782481,0.05010913,136.39,136.37,3.09048693]
[1765206782981,0.05010913,136.39,136.37,9.69008693]
[1765206783211,0.05010913,136.39,136.37,0.05048693]
[1765206783212,3.33010913,136.39,136.37,0.05048693]
[1765206783484,3.28,136.37,136.3,3.04]
[1765206783674,62.34,136.36,136.3,3.04]
[1765206783872,3.28,136.35,136.31,6.6023]
[1765206784078,3.28,136.35,136.3,3.04]
[1765206784275,7.58228547,136.35,136.26,3.04]
[1765206784475,3.28,136.3,136.22,3.04]
[1765206784681,62.34,136.31,136.22,3.04]
[1765206784875,0.04654629,136.27,136.24,3.04]
[1765206785077,0.04654629,136.27,136.23,9.6463]
[1765206785280,0.04654629,136.27,136.24,3.04]
[1765206786886,0.04654629,136.27,136.25,9.6453]
[1765206787188,0.04654629,136.27,136.26,3.04]
[1765206787876,68.9619,136.33,136.27,6.6044]
[1765206788182,62.36,136.33,136.27,3.04]
[1765206788483,3.28,136.33,136.26,6.6048]
[1765206789185,3.28,136.29,136.28,0.05030464]
[1765206789384,3.28,136.29,136.2,105.8285]
[1765206789584,3.28,136.29,136.22,105.8139]
[1765206789786,3.28,136.29,136.22,3.04]
[1765206789986,7.58228547,136.32,136.23,105.8061]
[1765206790283,0.05167227,136.29,136.23,105.8061]
[1765206790481,0.05167227,136.29,136.25,6.6053]
[1765206790682,3.33167227,136.29,136.2,105.8285]
[1765206790880,0.05088157,136.26,136.24,9.6459]
[1765206791082,0.05549144,136.26,136.25,3.04]
[1765206791985,0.05549144,136.26,136.25,9.6456]
[1765206792383,0.05549144,136.26,136.23,6.6063]
[1765206792784,0.05549144,136.26,136.23,9.6463]
[1765206792983,0.05549144,136.26,136.24,9.6458]
[1765206793185,0.05549144,136.26,136.25,3.04]
[1765206794381,62.38,136.32,136.25,105.7915]
[1765206795083,62.38,136.32,136.26,6.6048]
[1765206795288,0.0549828,136.3,136.28,0.04951766]
[1765206796384,3.3349828,136.3,136.28,0.04951766]
[1765206796788,3.3349828,136.3,136.21,65.42]
[1765206796789,3.28,136.29,136.21,3.04]
[1765206796989,6.6043,136.28,136.21,9.6472]
[1765206797184,6.6043,136.28,136.17,66.70228547]
[1765206797185,3.28,136.28,136.17,102.8111]
[1765206797391,3.28,136.26,136.17,105.8511]
[1765206797587,3.28,136.25,136.15,3.04]
[1765206797789,3.28,136.25,136.13,6.65051004]
[1765206797790,3.28,136.23,136.13,6.65051004]
[1765206798094,0.0540164,136.19,136.15,105.8669]
[1765206798294,0.0540164,136.19,136.16,102.8213]
[1765206798489,0.0540164,136.19,136.17,3.0]
[1765206798983,62.38,136.24,136.21,3.0]
[1765206799994,62.43364856,136.24,136.21,3.04740217]
[1765206800295,0.05364856,136.24,136.22,9.6068]
[1765206800697,0.05364856,136.24,136.23,3.0]
[1765206801192,0.05364856,136.24,136.21,0.04740217]
[1765206801494,0.05364856,136.24,136.21,3.04740217]
[1765206801892,0.05364856,136.24,136.22,6.6067]
[1765206802098,0.05364856,136.24,136.23,3.0]
[1765206802311,62.4,136.3,136.24,3.0]
[1765206802598,62.4,136.3,136.25,3.0]
[1765206802803,3.21,136.34,136.26,3.0]
[1765206803493,0.05308057,136.31,136.29,0.04620428]
[1765206804285,0.05308057,136.31,136.29,3.04620428]
[1765206804692,0.05308057,136.31,136.29,0.04620428]
[1765206805204,3.26308057,136.31,136.29,0.04620428]
[1765206805901,0.05308057,136.31,136.29,0.04620428]
[1765206806087,3.26308057,136.31,136.29,0.04620428]
[1765206806291,0.05308057,136.31,136.29,0.04620428]
[1765206807797,3.21,136.3,136.22,3.0]
[1765206808293,3.21,136.3,136.23,3.0]
[1765206808686,0.04992515,136.28,136.25,0.05160137]
[1765206808894,3.25992515,136.28,136.25,0.05160137]
[1765206809289,6.6048,136.27,136.25,0.05160137]
[1765206809497,9.8148,136.27,136.25,0.05160137]
[1765206810091,3.21,136.27,136.25,0.05160137]
[1765206810300,3.21,136.25,136.17,3.0]
[1765206810992,3.21,136.25,136.2,9.6078]
[1765206811300,0.05304655,136.24,136.21,3.0]
[1765206812290,0.05304655,136.24,136.21,9.6073]
[1765206812492,0.05304655,136.24,136.22,3.0]
[1765206813904,0.05304655,136.24,136.19,3.0]
[1765206814102,3.26304655,136.24,136.18,102.8003]
[1765206814309,3.26304655,136.24,136.18,3.0]
[1765206814310,0.05304655,136.24,136.18,3.0]
[1765206814503,0.05304655,136.24,136.21,3.0]
[1765206815096,0.05304655,136.24,136.21,9.6074]
[1765206815310,0.05304655,136.24,136.21,6.6074]
[1765206815904,0.05304655,136.24,136.2,3.0]
[1765206816214,3.26304655,136.24,136.17,3.0]
[1765206816403,0.05528259,136.22,136.18,9.6088]
[1765206816602,0.05528259,136.22,136.18,3.0]
[1765206816811,3.26528259,136.22,136.14,3.0]
[1765206817111,0.0476224,136.19,136.16,9.6098]
[1765206817310,0.0476224,136.19,136.16,3.0]
[1765206821112,62.4,136.24,136.18,3.0]
[1765206821404,4.30228547,136.22,136.14,3.0]
[1765206821706,70.90842912,136.24,136.16,3.0]
[1765206821907,65.61,136.24,136.16,3.0]
[1765206822210,9.86942075,136.21,136.19,0.04812409]
[1765206822712,0.05162075,136.21,136.19,0.04812409]
[1765206823211,3.26162075,136.21,136.19,0.04812409]
[1765206823907,9.8189,136.19,136.13,3.61051004]
[1765206824108,3.21,136.19,136.13,6.61051004]
[1765206824902,0.04938511,136.17,136.14,3.0]
[1765206825411,0.04938511,136.17,136.13,3.61051004]
[1765206825412,0.04938511,136.17,136.16,3.0]
[1765206825611,0.04938511,136.17,136.14,3.0]
[1765206827910,0.04938511,136.17,136.13,6.61051004]
[1765206828116,0.04938511,136.17,136.14,3.08]
[1765206828821,9.8169,136.23,136.16,9.6897]
[1765206829013,3.21,136.23,136.16,9.6897]
[1765206829817,3.18192042,136.21,136.18,0.04897486]
[1765206830319,9.78972042,136.21,136.18,0.04897486]
[1765206830521,3.13,136.2,136.18,0.04897486]
[1765206830711,9.7382,136.2,136.18,0.04897486]
[1765206831015,3.18192042,136.21,136.18,0.04897486]
[1765206831914,3.13,136.2,136.18,0.04897486]
[1765206832418,65.57,136.19,136.18,0.04897486]
[1765206833412,3.13,136.16,136.13,3.61051004]
[1765206833724,70.86842912,136.19,136.13,3.61051004]
[1765206833913,65.57,136.19,136.13,3.61051004]
[1765206834416,9.79567859,136.17,136.13,3.61051004]
[1765206834926,0.05597859,136.17,136.13,6.69051004]
[1765206835223,3.18597859,136.17,136.13,3.61051004]
[1765206836537,9.79567859,136.17,136.13,3.61051004]
[1765206837739,9.79567859,136.17,136.13,6.69051004]
[1765206838341,9.79567859,136.17,136.13,3.61051004]
[1765206838541,9.79567859,136.17,136.13,6.69051004]
[1765206838740,3.18597859,136.17,136.13,6.69051004]
[1765206840237,3.13,136.16,136.13,3.61051004]
[1765206841140,9.7401,136.16,136.13,3.61051004]
[1765206841441,3.13,136.14,136.13,3.61051004]
[1765206841740,102.8689,136.1,135.98,102.9559]
[1765206842037,7.51554119,136.02,135.95,3.08]
[1765206842237,7.51554119,135.99,135.91,3.08]
[1765206842438,14.13264119,136.02,135.93,3.12]
[1765206842830,0.04767652,135.99,135.93,3.12]
[1765206843035,6.20524978,135.98,135.93,3.12]
[1765206843230,0.04767652,135.99,135.95,3.12]
[1765206843440,102.9196,136.04,135.93,3.12]
[1765206843631,102.9055,136.05,135.95,3.12]
[1765206843840,102.902,136.06,135.95,3.12]
[1765206843841,62.46,136.04,135.95,3.12]
[1765206844042,62.46,136.04,135.94,102.9876]
[1765206844043,5.28004252,136.06,135.98,3.12]
[1765206844242,165.369,136.05,135.98,3.12]
[1765206844442,62.46,136.05,135.98,3.12]
[1765206844642,0.05615228,136.03,136.0,0.0557732]
[1765206844948,102.9289,136.02,136.0,0.0557732]
[1765206845247,0.05615228,136.03,136.0,0.0557732]
[1765206845539,102.97885228,136.03,136.0,0.0557732]
[1765206845841,102.9439,136.0,135.93,3.12]
[1765206846038,69.0982,135.99,135.93,3.12]
[1765206846734,62.48,135.99,135.94,3.12]
[1765206846936,0.05476781,135.98,135.94,3.12]
[1765206847143,102.8835,136.08,135.97,3.12]
[1765206847344,62.48,136.07,135.97,3.12]
[1765206847949,6.6155,136.05,135.97,3.12]
[1765206848251,0.04960204,136.02,136.0,3.16808023]
[1765206848955,62.48,136.07,136.0,3.16808023]
[1765206849341,102.8692,136.1,136.01,3.12]
[1765206849545,102.8757,136.09,136.01,3.12]
[1765206849842,0.05114994,136.06,136.04,0.04850102]
[1765206850039,102.95034994,136.06,136.04,0.04850102]
[1765206850440,165.45034994,136.06,136.04,0.04850102]
[1765206850638,6.6156,136.05,135.97,3.12]
[1765206850845,62.5,136.06,135.97,3.12]
[1765206851041,165.401,136.06,135.97,3.12]
[1765206851243,102.9138,136.04,135.94,3.12]
[1765206851545,0.04817384,136.0,135.98,0.05416349]
[1765206851746,109.61567843,136.0,135.98,0.05416349]
[1765206853352,109.61567843,136.0,135.9,3.12]
[1765206853353,6.6193,135.97,135.9,3.12]
[1765206853547,102.9552,135.99,135.9,3.12]
[1765206853852,102.9441,136.0,135.9,9.7423]
[1765206854238,6.6191,135.98,135.91,3.12]
[1765206854443,0.04782882,135.96,135.91,3.12]
[1765206855052,62.5,136.01,135.94,3.12]
[1765206856046,62.5,136.01,135.95,6.6198]
[1765206856250,0.04667481,135.99,135.96,3.16999422]
[1765206857044,0.04667481,135.99,135.96,0.04999422]
[1765206857244,6.6189,135.98,135.96,0.04999422]
[1765206858252,102.9887,135.94,135.86,7.51554119]
[1765206858447,165.5178,135.93,135.84,3.31]
[1765206858653,62.52,135.93,135.84,3.31]
[1765206859149,0.04766582,135.9,135.84,3.31]
[1765206859354,0.04766582,135.9,135.86,3.31]
[1765206859557,0.04766582,135.9,135.87,3.31]
[1765206859960,62.52,135.97,135.9,3.31]
[1765206860155,165.4889,135.97,135.9,3.31]
[1765206860345,6.6201,135.96,135.89,3.31]
[1765206860550,62.52,135.97,135.89,3.31]
[1765206860750,62.52,135.97,135.9,3.31]
[1765206860946,0.05500475,135.95,135.92,0.05173666]
[1765206861150,103.03980475,135.95,135.92,0.05173666]
[1765206861351,0.05500475,135.95,135.92,0.05173666]
[1765206861747,62.52,135.97,135.92,3.36173666]
[1765206861956,102.9247,136.03,135.92,3.36173666]
[1765206861957,6.6159,136.04,135.96,3.31]
[1765206862156,0.07,136.07,135.99,3.26]
[1765206862359,102.891,136.07,135.99,3.26]
[1765206862553,6.6152,136.06,135.99,3.26]
[1765206862854,6.6152,136.06,136.01,0.04935049]
[1765206863164,102.8708,136.1,136.01,0.04935049]
[1765206863165,3.14,136.13,136.04,3.21]
[1765206863364,102.8257,136.16,136.05,3.21]
[1765206863552,109.4451,136.15,136.06,10.72554119]
[1765206864156,0.0511886,136.12,136.09,0.05662892]
[1765206864353,0.0511886,136.12,136.09,3.26662892]
[1765206864565,0.0511886,136.12,136.1,3.21]
[1765206864952,3.1911886,136.12,136.09,0.05662892]
[1765206865156,0.0511886,136.12,136.09,0.05662892]
[1765206865558,0.0511886,136.12,136.09,3.26662892]
[1765206865862,0.0511886,136.12,136.09,0.05662892]